fUSD/lending_fUSD_20240606
["ID","MTS","AMOUNT","RATE_DAILY","PERIOD"]
[328689318,1717709445877,-415.17732812,0.00029,2]
[328689319,1717709445887,-415.17732812,0.00029,2]
[328689320,1717709445896,-415.17732812,0.00029,2]
[328689321,1717709445906,-415.17732812,0.00029,2]
[328689322,1717709445916,-415.17732812,0.00029,2]
[328689323,1717709445925,-415.17732812,0.00029,2]
[328689324,1717709445934,-415.17732812,0.00029,2]
[328689325,1717709445943,-415.17732812,0.00029,2]
[328689326,1717709445953,-415.17732812,0.00029,2]
[328689327,1717709445963,-415.17732812,0.00029,2]
[328689328,1717709445972,-415.17732812,0.00029,2]
[328689329,1717709445981,-415.17732812,0.00029,2]
[328689330,1717709445990,-415.17732812,0.00029,2]
[328689331,1717709445999,-415.17732812,0.00029,2]
[328689332,1717709446008,-415.17732812,0.00029,2]
[328689333,1717709446018,-415.17732812,0.00029,2]
[328689334,1717709446027,-415.17732812,0.00029,2]
[328689335,1717709446037,-415.17732812,0.00029,2]
[328689336,1717709446046,-415.17732812,0.00029,2]
[328689337,1717709446056,-415.17732812,0.00029,2]
[328689338,1717709446065,-415.17732812,0.00029,2]
[328689339,1717709446075,-415.17732812,0.00029,2]
[328689340,1717709446084,-415.17732812,0.00029,2]
[328689341,1717709446093,-415.17732812,0.00029,2]
[328689342,1717709446103,-415.17732812,0.00029,2]
[328689343,1717709446112,-415.17732812,0.00029,2]
[328689344,1717709446122,-415.17732812,0.00029,2]
[328689345,1717709446132,-415.17732812,0.00029,2]
[328689346,1717709446142,-415.17732812,0.00029,2]
[328689347,1717709446152,-415.17732812,0.00029,2]
[328689348,1717709446162,-415.17732812,0.00029,2]
[328689349,1717709446172,-415.17732812,0.00029,2]
[328689350,1717709446182,-415.17732812,0.00029,2]
[328689351,1717709446192,-415.17732812,0.00029,2]
[328689352,1717709446201,-415.17732812,0.00029,2]
[328689353,1717709446210,-415.17732812,0.00029,2]
[328689354,1717709446220,-415.17732812,0.00029,2]
[328689355,1717709446230,-415.17732812,0.00029,2]
[328689356,1717709446240,-415.17732812,0.00029,2]
[328689357,1717709446250,-415.17732812,0.00029,2]
[328689358,1717709446259,-415.17732812,0.00029,2]
[328689359,1717709446269,-415.17732812,0.00029,2]
[328689360,1717709446279,-415.17732812,0.00029,2]
[328689361,1717709446288,-415.17732812,0.00029,2]
[328689363,1717709446297,-415.17732812,0.00029,2]
[328689365,1717709446306,-415.17732812,0.00029,2]
[328689367,1717709446315,-415.17732812,0.00029,2]
[328689369,1717709446325,-415.17732812,0.00029,2]
[328689370,1717709446334,-415.17732812,0.00029,2]
[328689372,1717709446343,-415.17732812,0.00029,2]
[328689374,1717709446353,-415.17732812,0.00029,2]
[328689376,1717709446364,-415.17732812,0.00029,2]
[328689378,1717709446373,-415.17732812,0.00029,2]
[328689380,1717709446383,-415.17732812,0.00029,2]
[328689382,1717709446392,-415.17732812,0.00029,2]
[328689384,1717709446401,-415.17732812,0.00029,2]
[328689386,1717709446411,-415.17732812,0.00029,2]
[328689388,1717709446420,-415.17732812,0.00029,2]
[328689390,1717709446430,-415.17732812,0.00029,2]
[328689392,1717709446439,-415.17732812,0.00029,2]
[328689394,1717709446449,-415.17732812,0.00029,2]
[328689396,1717709446459,-415.17732812,0.00029,2]
[328689398,1717709446468,-415.17732812,0.00029,2]
[328689399,1717709446477,-415.17732812,0.00029,2]
[328689400,1717709446486,-415.17732812,0.00029,2]
[328689401,1717709446495,-415.17732812,0.00029,2]
[328689402,1717709446505,-415.17732812,0.00029,2]
[328689403,1717709446514,-415.17732812,0.00029,2]
[328689404,1717709446523,-415.17732812,0.00029,2]
[328689405,1717709446533,-415.17732812,0.00029,2]
[328689406,1717709446543,-415.17732812,0.00029,2]
[328689407,1717709446552,-415.17732812,0.00029,2]
[328689408,1717709446561,-415.17732812,0.00029,2]
[328689409,1717709446570,-415.17732812,0.00029,2]
[328689410,1717709446579,-415.17732812,0.00029,2]
[328689411,1717709446588,-415.17732812,0.00029,2]
[328689412,1717709446598,-415.17732812,0.00029,2]
[328689413,1717709446607,-415.17732812,0.00029,2]
[328689414,1717709446617,-415.17732812,0.00029,2]
[328689415,1717709446626,-415.17732812,0.00029,2]
[328689416,1717709446636,-415.17732812,0.00029,2]
[328689417,1717709446645,-415.17732812,0.00029,2]
[328689418,1717709446654,-415.17732812,0.00029,2]
[328689419,1717709446663,-415.17732812,0.00029,2]
[328689420,1717709446672,-415.17732812,0.00029,2]
[328689421,1717709446682,-415.17732812,0.00029,2]
[328689422,1717709446691,-415.17732812,0.00029,2]
[328689423,1717709446700,-415.17732812,0.00029,2]
[328689424,1717709446710,-415.17732812,0.00029,2]
[328689425,1717709446719,-415.17732812,0.00029,2]
[328689426,1717709446728,-415.17732812,0.00029,2]
[328689427,1717709446737,-415.17732812,0.00029,2]
[328689428,1717709446752,-415.17732812,0.00029,2]
[328689429,1717709446762,-1641.264106,0.00029011,2]
[328689430,1717709446772,-165.07057326,0.00029014,30]
[328689431,1717709446781,-398.65,0.00029054,2]
[328689432,1717709446792,-25000.0,0.0002907,2]
[328689433,1717709446801,-2501.29,0.00029082,2]
[328689434,1717709446811,-2500.0,0.00029084,2]
[328689435,1717709446820,-2500.0,0.00029119,2]
[328689436,1717709446830,-165.07057326,0.00029123,30]
[328689437,1717709446840,-151.0,0.00029129,7]
[328689438,1717709446850,-1600.0,0.000292,10]
[328689439,1717709446860,-500.0,0.000292,2]
[328689440,1717709446870,-500.0,0.000292,2]
[328689441,1717709446879,-500.0,0.000292,2]
[328689442,1717709446888,-500.0,0.000292,2]
[328689443,1717709446897,-500.0,0.000292,2]
[328689444,1717709446907,-500.0,0.000292,2]
[328689445,1717709446916,-500.0,0.000292,2]
[328689446,1717709446925,-500.0,0.000292,2]
[328689447,1717709446934,-500.0,0.000292,2]
[328689448,1717709446943,-500.0,0.000292,2]
[328689449,1717709446952,-500.0,0.000292,2]
[328689450,1717709446962,-500.0,0.000292,2]
[328689451,1717709446971,-500.0,0.000292,2]
[328689452,1717709446980,-500.0,0.000292,2]
[328689453,1717709446990,-500.0,0.000292,2]
[328689454,1717709446999,-500.0,0.000292,2]
[328689455,1717709447008,-500.0,0.000292,2]
[328689456,1717709447017,-500.0,0.00029224,2]
[328689457,1717709447026,-165.07057326,0.0002926,30]
[328689458,1717709447035,-5000.0,0.00029267,2]
[328689459,1717709447044,-2500.0,0.00029279,2]
[328689460,1717709447053,-500.0,0.000293,2]
[328689461,1717709447063,-2000.0,0.000293,10]
[328689462,1717709447073,-165.07057326,0.0002937,30]
[328689463,1717709447082,-160.90680568,0.0002938,2]
[328689464,1717709447091,-151.08762495,0.0002938,2]
[328689465,1717709447100,-10000.0,0.0002938,2]
[328689466,1717709447112,-169.1104515,0.0002939,2]
[328689467,1717709447121,-500.0,0.000294,8]
[328689468,1717709447131,-400.0,0.000294,10]
[328689469,1717709447140,-151.0,0.00029419,7]
[328689470,1717709447149,-150.5,0.0002945,15]
[328689471,1717709447158,-862.0,0.0002945,15]
[328689472,1717709447167,-772.0,0.0002945,15]
[328689473,1717709447177,-3961.99781784,0.00029451,2]
[328689474,1717709447187,-150.5,0.0002946,15]
[328689475,1717709447197,-154.42,0.0002946,15]
[328689476,1717709447207,-862.0,0.0002946,15]
[328689477,1717709447217,-772.0,0.0002946,15]
[328689478,1717709447226,-263.8,0.0002946,15]
[328689479,1717709447235,-150.5,0.0002947,15]
[328689480,1717709447244,-150.5,0.0002947,15]
[328689481,1717709447253,-862.0,0.0002947,15]
[328689482,1717709447262,-772.0,0.0002947,15]
[328689483,1717709447271,-150.5,0.0002947,15]
[328689484,1717709447280,-178.13,0.0002947,15]
[328689485,1717709447290,-152.4,0.0002947,2]
[328689486,1717709447300,-152.4,0.0002947,2]
[328689487,1717709447310,-1182.36741036,0.00029478,2]
[328689488,1717709447319,-485.41166127,0.00029478,2]
[328689489,1717709447329,-1898.91513286,0.00029478,2]
[328689490,1717709447338,-275.96686544,0.00029478,2]
[328689491,1717709447347,-268.8327842,0.00029478,2]
[328689492,1717709447356,-333.20556978,0.00029478,2]
[328689493,1717709447367,-155.31359125,0.00029478,2]
[328689494,1717709447377,-155.0,0.00029478,2]
[328689495,1717709447386,-256.27762166,0.00029478,2]
[328689496,1717709447395,-162.470349,0.00029478,2]
[328689497,1717709447404,-851.0660361,0.00029478,2]
[328689498,1717709447415,-613.12574692,0.00029478,7]
[328689499,1717709447424,-4165.37375278,0.00029478,2]
[328689500,1717709447435,-155.0,0.00029478,7]
[328689501,1717709447444,-6253.01057815,0.00029478,2]
[328689502,1717709447453,-278.8931,0.00029478,2]
[328689503,1717709447464,-327.68541616,0.00029478,2]
[328689504,1717709447475,-156.44858283,0.00029478,2]
[328689505,1717709447486,-299.16649425,0.00029478,10]
[328689506,1717709447498,-468.40220737,0.00029478,2]
[328689507,1717709447508,-296.58359376,0.00029478,2]
[328689508,1717709447517,-503.69942733,0.00029478,2]
[328689509,1717709447529,-19385.1044002,0.00029478,2]
[328689510,1717709447538,-1260.44934067,0.00029478,2]
[328689511,1717709447547,-155.26147863,0.00029478,2]
[328689512,1717709447558,-155.0,0.00029478,2]
[328689513,1717709447568,-155.35686898,0.00029478,2]
[328689514,1717709447577,-237.7692352,0.00029478,2]
[328689515,1717709447588,-5280.84415745,0.00029478,2]
[328689516,1717709447597,-842.92918718,0.00029478,2]
[328689517,1717709447609,-23543.53052793,0.00029478,5]
[328689518,1717709447619,-690.58346516,0.00029478,2]
[328689519,1717709447628,-397.70383891,0.00029478,2]
[328689520,1717709447637,-159.28920321,0.00029478,2]
[328689521,1717709447647,-212.58054006,0.00029478,2]
[328689522,1717709447656,-326.093692,0.00029478,2]
[328689523,1717709447665,-156.8679506,0.00029478,2]
[328689524,1717709447675,-433.50539689,0.00029478,2]
[328689525,1717709447684,-155.15603242,0.00029478,2]
[328689526,1717709447694,-210.12064252,0.00029478,2]
[328689527,1717709447703,-605.80243126,0.00029478,2]
[328689528,1717709447712,-783.59443508,0.00029478,2]
[328689529,1717709447722,-539.22307536,0.00029478,2]
[328689530,1717709447731,-237.36772959,0.00029478,2]
[328689531,1717709447741,-2366.03746575,0.00029478,2]
[328689532,1717709447753,-155.36916986,0.00029478,2]
[328689533,1717709447763,-265.45840376,0.00029478,2]
[328689534,1717709447772,-163.41535256,0.00029478,2]
[328689535,1717709447783,-960.93764961,0.00029478,2]
[328689536,1717709447792,-180.04768497,0.00029478,2]
[328689537,1717709447802,-931.2357102,0.00029478,2]
[328689538,1717709447811,-178.99340497,0.00029478,2]
[328689539,1717709447822,-490.06503788,0.00029478,2]
[328689540,1717709447831,-205.45032417,0.00029478,2]
[328689541,1717709447841,-530.32098159,0.00029478,2]
[328689542,1717709447850,-4438.46997973,0.00029478,2]
[328689543,1717709447860,-637.58825194,0.00029479,2]
[328689544,1717709447869,-150.0,0.00029479,10]
[328689545,1717709447878,-150.0,0.00029479,10]
[328689546,1717709447887,-179.94391801,0.00029479,2]
[328689547,1717709447897,-1400.0,0.0002948,2]
[328689548,1717709447906,-1400.0,0.0002948,2]
[328689549,1717709447915,-1311222.80955335,0.0002948,14]
[328689550,1717709447924,-151.0,0.0002948,7]
[328689551,1717709447933,-151.0,0.0002948,7]
[328689552,1717709447942,-151.0,0.0002948,7]
[328689553,1717709447952,-179.280745,0.0002948,7]
[328689554,1717709447961,-151.0,0.0002948,7]
[328689555,1717709447970,-152.791686,0.0002948,7]
[328689556,1717709447979,-151.0,0.0002948,7]
[328689557,1717709447988,-254.071215,0.0002948,7]
[328689558,1717709447997,-151.0,0.0002948,7]
[328689559,1717709448006,-151.0,0.0002948,7]
[328689560,1717709448015,-234.5,0.0002948,7]
[328689561,1717709448024,-151.0,0.0002948,7]
[328689562,1717709448033,-151.0,0.0002948,7]
[328689563,1717709448043,-151.0,0.0002948,7]
[328689564,1717709448052,-151.0,0.0002948,7]
[328689565,1717709448061,-152.718714,0.0002948,7]
[328689566,1717709448070,-151.0,0.0002948,7]
[328689567,1717709448079,-151.0,0.0002948,7]
[328689568,1717709448088,-186.442226,0.0002948,7]
[328689569,1717709448098,-151.0,0.0002948,7]
[328689570,1717709448108,-151.0,0.0002948,7]
[328689571,1717709448118,-151.0,0.0002948,7]
[328689572,1717709448128,-151.0,0.0002948,7]
[328689573,1717709448137,-340.900322,0.0002948,7]
[328689574,1717709448146,-340.900322,0.0002948,7]
[328689575,1717709448155,-151.0,0.0002948,7]
[328689576,1717709448165,-254.554355,0.0002948,7]
[328689577,1717709448175,-151.0,0.0002948,7]
[328689578,1717709448184,-151.0,0.0002948,7]
[328689579,1717709448194,-151.0,0.0002948,7]
[328689580,1717709448203,-226.62818763,0.000295,3]
[328689581,1717709448212,-400.0,0.000295,10]
[328689582,1717709448222,-150.0,0.000295,6]
[328689583,1717709448231,-165.07057326,0.00029507,30]
[328689584,1717709448241,-160.90680567,0.00029553,2]
[328689585,1717709448250,-154.49060541,0.00029554,2]
[328689586,1717709448260,-386.04746802,0.00029558,2]
[328689587,1717709448269,-153.10309909,0.00029562,2]
[328689588,1717709448278,-1807.07102798,0.00029569,2]
[328689589,1717709448287,-330.59621948,0.00029579,2]
[328689590,1717709448296,-24608.09,0.00029579,2]
[328689591,1717709448305,-154.83487758,0.00029583,2]
[328689592,1717709448314,-386.04746802,0.00029589,2]
[328689593,1717709448324,-400.0,0.000296,10]
[328689594,1717709448333,-2500.0,0.00029606,2]
[328689595,1717709448342,-166.68931392,0.00029612,2]
[328689596,1717709448352,-1807.07102798,0.00029616,2]
[328689597,1717709448362,-165.07057326,0.00029616,30]
[328689598,1717709448371,-166.68931392,0.00029635,2]
[328689599,1717709448381,-151.08762494,0.0002964,2]
[328689600,1717709448390,-2734.34411144,0.00029663,7]
[328689601,1717709448400,-1807.07102798,0.00029664,2]
[328689602,1717709448409,-153.88863636,0.00029669,2]
[328689603,1717709448419,-154.7425128,0.00029676,2]
[328689604,1717709448429,-330.59621948,0.00029695,2]
[328689605,1717709448438,-153.87703825,0.00029698,2]
[328689606,1717709448448,-280.0,0.000297,2]
[328689607,1717709448457,-280.0,0.000297,2]
[328689608,1717709448467,-280.0,0.000297,2]
[328689609,1717709448476,-400.0,0.000297,10]
[328689610,1717709448485,-154.83487758,0.00029705,2]
[328689611,1717709448496,-151.0,0.0002971,7]
[328689612,1717709448505,-1807.07102798,0.00029711,2]
[328689613,1717709448515,-386.04746802,0.00029717,2]
[328689614,1717709448525,-154.12254264,0.00029718,2]
[328689615,1717709448535,-154.49060541,0.00029724,2]
[328689616,1717709448544,-2500.0,0.00029725,2]
[328689617,1717709448554,-165.07057326,0.00029726,30]
[328689618,1717709448564,-160.90680567,0.00029727,2]
[328689619,1717709448574,-606.66613879,0.00029732,2]
[328689620,1717709448583,-153.10309909,0.00029746,2]
[328689621,1717709448592,-1807.07102798,0.00029758,2]
[328689622,1717709448602,-327.27918573,0.0002976,2]
[328689623,1717709448611,-330.59621948,0.00029761,2]
[328689624,1717709448621,-1909.94229033,0.00029763,2]
[328689625,1717709448630,-757.76009345,0.00029763,2]
[328689626,1717709448640,-168.28119332,0.00029782,2]
[328689627,1717709448650,-154.49060541,0.00029792,2]
[328689628,1717709448660,-9270.25599237,0.000298,14]
[328689629,1717709448670,-589.0,0.000298,10]
[328689630,1717709448679,-1999.737969,0.000298,2]
[328689631,1717709448689,-1807.07102798,0.00029805,2]
[328689632,1717709448699,-606.66613879,0.00029808,2]
[328689633,1717709448709,-386.04746802,0.00029811,2]
[328689634,1717709448718,-153.10309909,0.00029813,2]
[328689635,1717709448728,-1909.94229033,0.00029832,2]
[328689636,1717709448738,-757.76009345,0.00029832,2]
[328689637,1717709448752,-219.79,0.00029832,15]
[328689638,1717709448762,-862.0,0.00029833,15]
[328689639,1717709448775,-772.0,0.00029833,15]
[328689640,1717709448910,-153.10309909,0.00029833,2]
[328689641,1717709448921,-280.12038544,0.0002984,2]
[328689642,1717709448931,-150.5,0.00029842,15]
[328689643,1717709448940,-862.0,0.00029843,15]
[328689644,1717709448950,-862.0,0.00029843,15]
[328689645,1717709448960,-772.0,0.00029843,15]
[328689646,1717709448969,-772.0,0.00029843,15]
[328689647,1717709448979,-386.04746802,0.00029844,2]
[328689648,1717709448989,-150.5,0.00029852,15]
[328689649,1717709448998,-2507.56,0.00029852,2]
[328689650,1717709449007,-1807.07102798,0.00029853,2]
[328689651,1717709449017,-862.0,0.00029853,15]
[328689652,1717709449026,-862.0,0.00029853,15]
[328689653,1717709449037,-772.0,0.00029853,15]
[328689654,1717709449048,-772.0,0.00029853,15]
[328689655,1717709449059,-157.93636307,0.0002986,2]
[328689656,1717709449069,-150.0,0.00029862,10]
[328689657,1717709449078,-150.0,0.00029862,10]
[328689658,1717709449087,-150.0,0.00029862,10]
[328689659,1717709449097,-150.0,0.00029862,10]
[328689660,1717709449106,-150.0,0.00029862,10]
[328689661,1717709449117,-150.0,0.00029862,10]
[328689662,1717709449126,-1071.84695952,0.00029862,15]
[328689663,1717709449135,-288064.54023333,0.00029863,13]
[328689664,1717709449145,-411.23530857,0.00029863,4]
[328689665,1717709449154,-206.60247356,0.00029863,4]
[328689666,1717709449164,-513.409368,0.00029863,4]
[328689667,1717709449174,-155.48284542,0.00029863,4]
[328689668,1717709449185,-542.65,0.00029863,4]
[328689669,1717709449195,-500.0,0.00029863,4]
[328689670,1717709449205,-500.0,0.00029863,4]
[328689671,1717709449215,-505.51625852,0.00029863,4]
[328689672,1717709449225,-500.0,0.00029863,4]
[328689673,1717709449234,-500.0,0.00029863,4]
[328689674,1717709449243,-500.0,0.00029863,4]
[328689675,1717709449254,-500.0,0.00029863,4]
[328689676,1717709449265,-500.0,0.00029863,4]
[328689677,1717709449274,-433.87302005,0.00029863,4]
[328689678,1717709449283,-500.0,0.00029863,4]
[328689679,1717709449293,-500.0,0.00029863,4]
[328689680,1717709449303,-626.54807157,0.00029863,4]
[328689681,1717709449313,-500.0,0.00029863,4]
[328689682,1717709449323,-500.0,0.00029863,4]
[328689683,1717709449333,-500.0,0.00029863,4]
[328689684,1717709449342,-184.73,0.00029863,4]
[328689685,1717709449352,-500.0,0.00029863,4]
[328689686,1717709449364,-569.635663,0.00029863,4]
[328689687,1717709449373,-500.0,0.00029863,4]
[328689688,1717709449383,-500.0,0.00029863,4]
[328689689,1717709449392,-500.0,0.00029863,4]
[328689690,1717709449402,-500.0,0.00029863,4]
[328689691,1717709449411,-500.0,0.00029863,4]
[328689692,1717709449421,-500.0,0.00029863,4]
[328689693,1717709449432,-500.0,0.00029863,4]
[328689694,1717709449441,-500.0,0.00029863,4]
[328689695,1717709449452,-500.0,0.00029863,4]
[328689696,1717709449462,-500.0,0.00029863,4]
[328689697,1717709449472,-500.0,0.00029863,4]
[328689698,1717709449482,-500.0,0.00029863,4]
[328689699,1717709449492,-500.0,0.00029863,4]
[328689700,1717709449501,-209.04896342,0.00029863,4]
[328689701,1717709449510,-500.0,0.00029863,4]
[328689702,1717709449520,-179.08052654,0.00029863,4]
[328689703,1717709449529,-500.0,0.00029863,4]
[328689704,1717709449538,-500.0,0.00029863,4]
[328689705,1717709449547,-500.0,0.00029863,4]
[328689706,1717709449557,-500.0,0.00029863,4]
[328689707,1717709449566,-500.0,0.00029863,4]
[328689708,1717709449575,-242.18,0.00029863,4]
[328689709,1717709449584,-1000.0,0.00029863,5]
[328689710,1717709449594,-1000.0,0.00029863,5]
[328689711,1717709449603,-500.0,0.00029863,4]
[328689712,1717709449613,-423.22954735,0.00029863,4]
[328689713,1717709449622,-500.0,0.00029863,4]
[328689714,1717709449631,-500.0,0.00029863,4]
[328689715,1717709449641,-463.11995779,0.00029863,4]
[328689716,1717709449651,-500.0,0.00029863,4]
[328689717,1717709449660,-500.0,0.00029863,4]
[328689718,1717709449669,-177.19,0.00029863,4]
[328689719,1717709449679,-500.0,0.00029863,4]
[328689720,1717709449688,-375.07245957,0.00029863,4]
[328689721,1717709449698,-500.0,0.00029863,4]
[328689722,1717709449710,-500.96123967,0.00029863,4]
[328689723,1717709449720,-500.0,0.00029863,4]
[328689724,1717709449730,-500.0,0.00029863,4]
[328689725,1717709449740,-228.23,0.00029863,4]
[328689726,1717709449752,-500.0,0.00029863,4]
[328689727,1717709449762,-348.12609326,0.00029863,4]
[328689728,1717709449771,-305.2148778,0.00029863,4]
[328689729,1717709449781,-500.0,0.00029863,4]
[328689730,1717709449790,-500.0,0.00029863,4]
[328689731,1717709449800,-500.0,0.00029863,4]
[328689732,1717709449810,-516.78760563,0.00029863,4]
[328689733,1717709449819,-500.0,0.00029863,4]
[328689734,1717709449831,-264.67,0.00029863,4]
[328689735,1717709449842,-500.0,0.00029863,4]
[328689736,1717709449851,-500.0,0.00029863,4]
[328689737,1717709449861,-500.0,0.00029863,4]
[328689738,1717709449870,-500.0,0.00029863,4]
[328689739,1717709449879,-500.0,0.00029863,4]
[328689740,1717709449888,-500.0,0.00029863,4]
[328689741,1717709449898,-500.0,0.00029863,4]
[328689742,1717709449907,-618.6,0.00029863,4]
[328689743,1717709449916,-500.0,0.00029863,4]
[328689744,1717709449926,-500.0,0.00029863,4]
[328689745,1717709449935,-501.92348465,0.00029863,4]
[328689746,1717709449945,-500.0,0.00029863,4]
[328689747,1717709449954,-500.0,0.00029863,4]
[328689748,1717709449963,-500.0,0.00029863,4]
[328689749,1717709449973,-500.0,0.00029863,4]
[328689750,1717709449982,-424.89761644,0.00029863,4]
[328689751,1717709449992,-500.0,0.00029863,4]
[328689752,1717709450001,-500.0,0.00029863,4]
[328689753,1717709450011,-500.0,0.00029863,4]
[328689754,1717709450020,-500.0,0.00029863,4]
[328689755,1717709450029,-500.0,0.00029863,4]
[328689756,1717709450038,-500.0,0.00029863,4]
[328689757,1717709450047,-500.0,0.00029863,4]
[328689758,1717709450057,-500.0,0.00029863,4]
[328689759,1717709450066,-500.0,0.00029863,4]
[328689760,1717709450075,-500.0,0.00029863,4]
[328689761,1717709450084,-500.0,0.00029863,4]
[328689762,1717709450094,-500.0,0.00029863,4]
[328689763,1717709450103,-500.0,0.00029863,4]
[328689764,1717709450112,-500.0,0.00029863,4]
[328689765,1717709450122,-500.0,0.00029863,4]
[328689766,1717709450131,-290.62969661,0.00029863,4]
[328689767,1717709450140,-553.94,0.00029863,4]
[328689768,1717709450149,-500.0,0.00029863,4]
[328689769,1717709450159,-500.0,0.00029863,4]
[328689770,1717709450168,-500.0,0.00029863,4]
[328689771,1717709450177,-500.0,0.00029863,4]
[328689772,1717709450187,-314.24,0.00029863,4]
[328689773,1717709450196,-500.0,0.00029863,4]
[328689774,1717709450205,-500.0,0.00029863,4]
[328689775,1717709450215,-500.0,0.00029863,4]
[328689776,1717709450224,-500.0,0.00029863,4]
[328689777,1717709450234,-500.0,0.00029863,4]
[328689778,1717709450243,-169.88,0.00029863,4]
[328689779,1717709450252,-500.0,0.00029863,4]
[328689780,1717709450262,-500.0,0.00029863,4]
[328689781,1717709450271,-500.0,0.00029863,4]
[328689782,1717709450280,-201.96,0.00029863,4]
[328689783,1717709450290,-500.0,0.00029863,4]
[328689784,1717709450300,-500.0,0.00029863,4]
[328689785,1717709450309,-500.0,0.00029863,4]
[328689786,1717709450318,-500.0,0.00029863,4]
[328689787,1717709450327,-600.67707288,0.00029863,4]
[328689788,1717709450337,-588.98262184,0.00029863,4]
[328689789,1717709450346,-500.0,0.00029863,4]
[328689790,1717709450355,-500.0,0.00029863,4]
[328689791,1717709450365,-500.0,0.00029863,4]
[328689792,1717709450374,-500.0,0.00029863,4]
[328689793,1717709450383,-429.0840831,0.00029863,4]
[328689794,1717709450394,-500.0,0.00029863,4]
[328689795,1717709450405,-500.0,0.00029863,4]
[328689796,1717709450416,-500.0,0.00029863,4]
[328689797,1717709450427,-500.0,0.00029863,4]
[328689798,1717709450437,-500.0,0.00029863,4]
[328689799,1717709450447,-500.0,0.00029863,4]
[328689800,1717709450458,-500.0,0.00029863,4]
[328689801,1717709450468,-500.0,0.00029863,4]
[328689802,1717709450479,-500.0,0.00029863,4]
[328689803,1717709450489,-230.6,0.00029863,4]
[328689804,1717709450500,-500.0,0.00029863,4]
[328689805,1717709450511,-500.0,0.00029863,4]
[328689806,1717709450521,-500.0,0.00029863,4]
[328689807,1717709450533,-516.72790107,0.00029863,4]
[328689808,1717709450544,-500.0,0.00029863,4]
[328689809,1717709450555,-500.0,0.00029863,4]
[328689810,1717709450565,-521.06,0.00029863,4]
[328689811,1717709450575,-500.0,0.00029863,4]
[328689812,1717709450586,-500.0,0.00029863,4]
[328689813,1717709450596,-500.0,0.00029863,4]
[328689814,1717709450605,-500.0,0.00029863,4]
[328689815,1717709450614,-500.0,0.00029863,4]
[328689816,1717709450624,-500.0,0.00029863,4]
[328689817,1717709450633,-500.0,0.00029863,4]
[328689818,1717709450644,-500.0,0.00029863,4]
[328689819,1717709450655,-407.03454138,0.00029863,4]
[328689820,1717709450664,-500.0,0.00029863,4]
[328689821,1717709450675,-500.0,0.00029863,4]
[328689822,1717709450686,-500.0,0.00029863,4]
[328689823,1717709450695,-500.0,0.00029863,4]
[328689824,1717709450704,-500.0,0.00029863,4]
[328689825,1717709450713,-500.0,0.00029863,4]
[328689826,1717709450724,-500.0,0.00029863,4]
[328689827,1717709450735,-500.0,0.00029863,4]
[328689828,1717709450749,-500.0,0.00029863,4]
[328689829,1717709450758,-509.91,0.00029863,4]
[328689830,1717709450768,-500.0,0.00029863,4]
[328689831,1717709450778,-500.0,0.00029863,4]
[328689832,1717709450790,-524.89,0.00029863,4]
[328689833,1717709450799,-500.0,0.00029863,4]
[328689834,1717709450809,-500.0,0.00029863,4]
[328689835,1717709450821,-500.0,0.00029863,4]